Cogmind - Beta 13 X1 @@@ ROGUE MODE // 2023.09.21 @ 18:23:40 Player: Plexion Result: Destroyed by D-53 Grenadier with Mini Grenade Launcher Performance ------------- Evolutions (0) 0 Regions Visited (4) 800 Robots Destroyed (28) 140 Value Destroyed (651) 651 Prototype IDs (23) 460 Alien Tech Used (0) 0 Bonus (300) 300 TOTAL SCORE: 2351 Bonus ------- Aligned with FarCom 300 Cogmind --------- Core Integrity 0/250 Matter 298/300 Energy 100/100 System Corruption 0% Temperature Cool (0) Movement Treading (320) Ox2 Location -9/Mines Parts ------- > --- POWER (1) -------- (None) > --- PROPULSION (2) --- Light Treads > --- UTILITY (2) ------ High-capacity Storage Unit Seismic Detector > --- WEAPON (2) ------- Light Assault Rifle Light Assault Rifle > --- INVENTORY (20) --- Ion Engine Light Ion Engine High-capacity Matter Pod (200) Scrap Shield Small Laser XL Autogun Array Battle Cannon Peak State ------------ > --- POWER ------------ Ion Engine > --- PROPULSION ------- Light Treads Light Treads > --- UTILITY ---------- High-capacity Storage Unit Seismic Detector > --- WEAPON ----------- Light Assault Rifle Light Assault Rifle > --- INVENTORY -------- Ion Engine Light Ion Engine High-capacity Matter Pod Scrap Shield Small Laser XL Autogun Array Battle Cannon [Rating: 11] Favorites ----------- Power Ion Engine Engine Ion Engine Propulsion Light Treads Treads Light Treads Utility High-capacity Storage Unit Device Seismic Detector Storage High-capacity Storage Unit Weapon Light Assault Rifle Ballistic Gun Light Assault Rifle Build | -11 -10 -10 -10 -9 ------- Run | Jun Mat Min Exi Min Slots Evolved . | . . . . . Power . | . . . . . Propulsion . | . . . . . Utility . | . . . . . Weapon . | . . . . . Parts Attached 11 | 6 3 2 . . Power 2 | 1 1 . . . Engine 2 | 1 1 . . . Core . | . . . . . Reactor . | . . . . . Propulsion 4 | 2 . 2 . . Treads 4 | 2 . 2 . . Leg . | . . . . . Wheel . | . . . . . Hover . | . . . . . Flight . | . . . . . Utility 3 | 1 2 . . . Device 1 | . 1 . . . Storage 2 | 1 1 . . . Processor . | . . . . . Hackware . | . . . . . Protection . | . . . . . Artifact . | . . . . . Weapon 2 | 2 . . . . Energy Gun . | . . . . . Energy Cannon . | . . . . . Ballistic Gun 2 | 2 . . . . Ballistic Cannon . | . . . . . Launcher . | . . . . . Special Weapon . | . . . . . Impact Weapon . | . . . . . Slashing Weapon . | . . . . . Piercing Weapon . | . . . . . Special Melee Weapon . | . . . . . Unidentified Prototypes . | . . . . . Parts Lost 4 | . . 2 . 2 Power 1 | . . . . 1 Propulsion 3 | . . 2 . 1 Utility . | . . . . . Weapon . | . . . . . Highest Loss Streak 2 | . . 1 . 2 To Critical Strikes . | . . . . . Average Slot Usage (%) 97 | . 91 99 100 100 Engine 14 | . 14 14 14 14 Treads 27 | . 28 27 28 28 Device 11 | . 5 14 14 14 Storage 14 | . 14 14 14 14 Ballistic Gun 28 | . 28 28 28 28 Naked Turns . | . . . . . Heaviest Build 48 | 10 48 48 48 48 Greatest Support 40 | 40 40 40 40 40 Greatest Overweight (x) 1 | . 1 1 1 1 Average Overweight (x) . | . . 1 1 1 Largest Inventory Capacity 20 | 8 20 20 20 20 Average Capacity 19 | 6 17 20 20 20 Most Carried 11 | 2 8 8 11 11 Average Carried 6 | 1 4 6 8 11 Final Capacity 20 | 8 20 20 20 20 Final Carried 11 | 2 8 7 11 11 Class Distribution -------------------- 100% | Mutant Dominant Class ---------------- Mutant | -10/Materials Mutant | -10/Mines Mutant | -10/Exiles Mutant | -9/Mines Resources | -11 -10 -10 -10 -9 ----------- Run | Jun Mat Min Exi Min Matter Collected 654 | 193 400 61 . . Remotely . | . . . . . Salvage Created 928 | . 628 277 . 23 Parts 58 | . 42 16 . . Haulers Intercepted 2 | . 2 . . . Recyclers Shooed 1 | . . 1 . . Parts Field Recycled . | . . . . . Retrieved Matter . | . . . . . Parts Self-Destructed . | . . . . . Prevented . | . . . . . Kills | -11 -10 -10 -10 -9 ------- Run | Jun Mat Min Exi Min Combat Hostiles Destroyed 20 | . 15 4 . 1 Guns 19 | . 14 4 . 1 Classes Destroyed 9 | . 6 2 . 1 Worker 2 | . 1 1 . . Tunneler 1 | . . 1 . . Hauler 2 | . 2 . . . Recycler 1 | . . 1 . . Watcher 2 | . 2 . . . Swarmer 6 | . 6 . . . Grunt 12 | . 8 4 . . Demolisher 1 | . . . . 1 Subdweller 1 | . 1 . . . Best Kill Streak 3 | . 3 2 . 1 Combat Bots Only 3 | . 3 2 . 1 Max Kills in Single Turn 1 | . 1 1 . 1 Gunslinging . | . . . . . Exploded . | . . . . . Melee . | . . . . . Uniques/NPCs Destroyed . | . . . . . Combat | -11 -10 -10 -10 -9 -------- Run | Jun Mat Min Exi Min Damage Taken 990 | . 470 218 . 302 Core 253 | . 119 76 . 58 Absorbed by Shields . | . . . . . Core Remaining (%) 100 | 100 . . . . Volleys Fired 82 | . 53 25 . 4 Largest 2 | . 2 2 . 2 Hottest 40 | . 40 40 . 40 Shots Fired 164 | . 106 50 . 8 Gun 164 | . 106 50 . 8 Cannon . | . . . . . Launcher . | . . . . . Special . | . . . . . Kinetic 164 | . 106 50 . 8 Thermal . | . . . . . Explosive . | . . . . . Electromagnetic . | . . . . . Robot Hit Streak 36 | . 36 13 . 2 Robot Miss Streak 7 | . 3 4 . 7 Penetration Max . | . . . . . Secondary Targets 4 | . 3 1 . . Max Gunslinging Chain 1 | . 1 1 . . Shots Hit Robots 121 | . 80 37 . 4 Core Hits 63 | . 43 18 . 2 Critical Kills 1 | . . . . 1 Critical Parts Destroyed . | . . . . . Critical Strikes 1 | . . . . 1 Destroy 1 | . . . . 1 Melee Attacks . | . . . . . Impact . | . . . . . Slashing . | . . . . . Piercing . | . . . . . Sneak Attacks . | . . . . . Combat Hostiles . | . . . . . Follow-up Attacks . | . . . . . Damage Inflicted 1007 | . 680 299 . 28 Guns 968 | . 649 291 . 28 Cannons . | . . . . . Explosions . | . . . . . Melee . | . . . . . Ramming 39 | . 31 8 . . Kinetic 968 | . 649 291 . 28 Thermal . | . . . . . Explosive . | . . . . . Electromagnetic . | . . . . . Impact . | . . . . . Slashing . | . . . . . Piercing . | . . . . . Highest Corruption . | . . . . . Average Corruption . | . . . . . Corruption Purged . | . . . . . Corruption Blocked . | . . . . . Overload Shots . | . . . . . Overflow Damage 2 | . 2 . . . Projectiles . | . . . . . Explosions . | . . . . . Melee 2 | . 2 . . . Knockbacks . | . . . . . Impact . | . . . . . Kinetic . | . . . . . Secondary . | . . . . . Self-Inflicted Damage . | . . . . . Shots . | . . . . . Rammed 8 | . 6 2 . . Targets Rammed 9 | . 6 3 . . Kicked . | . . . . . Crushed 1 | . . 1 . . Highest Temperature 36 | . 18 36 . . Average Temperature 9 | . 7 11 . . Received Heat Transfer 324 | . 162 162 . . Siege Activations . | . . . . . Robots Corrupted . | . . . . . Combat Hostiles . | . . . . . Parts Fried 3 | . 3 . . . Impact Corruptions 1 | . 1 . . . Robots Melted . | . . . . . Combat Hostiles . | . . . . . Parts Melted 2 | . 1 . . 1 Heat Transferred . | . . . . . Parts Sabotaged . | . . . . . Parts Stolen . | . . . . . Parts Stripped . | . . . . . Power Chain Reactions . | . . . . . Missiles Intercepted . | . . . . . Alert | -11 -10 -10 -10 -9 ------- Run | Jun Mat Min Exi Min Peak Influence 191 | . 191 136 . 30 Initial 51 | . . 51 . . Average 45 | . 90 21 . . Maximum Alert Level . | . . . . . Low Security (%) 100 | 100 100 100 . 100 Level 1 . | . . . . . Level 2 . | . . . . . Level 3 . | . . . . . Level 4 . | . . . . . Level 5 . | . . . . . High Security . | . . . . . Max Security . | . . . . . Squads Dispatched 4 | . 4 . . . Investigation 1 | . 1 . . . Extermination . | . . . . . Reinforcement 3 | . 3 . . . Assault . | . . . . . Garrison . | . . . . . Intercept . | . . . . . Searches Triggered . | . . . . . Construction Impeded . | . . . . . Haulers Reinforced . | . . . . . Active Scanning Responses . | . . . . . Cargo Convoy Interrupts . | . . . . . Stealth | -11 -10 -10 -10 -9 --------- Run | Jun Mat Min Exi Min Distress Signals 3 | . 3 . . . Communications Jammed . | . . . . . Distress Signals . | . . . . . Times Spotted 29 | . 23 4 . 2 Peak Tracking Total 3 | . 3 2 . 2 Tactical Retreats 1 | . 1 . . . Traps | -11 -10 -10 -10 -9 ------- Run | Jun Mat Min Exi Min Traps Triggered 1 | . 1 . . . Indirectly . | . . . . . Trap Hack Attempts . | . . . . . Triggered . | . . . . . Disarmed . | . . . . . Reprogrammed . | . . . . . Reused . | . . . . . Traps Extracted . | . . . . . Installed . | . . . . . Triggered . | . . . . . Machines | -11 -10 -10 -10 -9 ---------- Run | Jun Mat Min Exi Min Machines Disabled . | . . . . . Max in Single Turn . | . . . . . Machines Repaired . | . . . . . Machines Sabotaged . | . . . . . Overloaded Fab Kills . | . . . . . Hacking | -11 -10 -10 -10 -9 --------- Run | Jun Mat Min Exi Min Machines Accessed 4 | . 2 . 2 . Terminals 2 | . 2 . . . Fabricators . | . . . . . Repair Stations . | . . . . . Recycling Units . | . . . . . Scanalyzers . | . . . . . Garrison Access . | . . . . . Total Hacks 5 | . 3 . 2 . Successful 3 | . 1 . 2 . Failed 2 | . 2 . . . Catastrophic 1 | . 1 . . . Database Lockouts . | . . . . . Manual 4 | . 3 . 1 . Terminals 3 | . 3 . . . Fabricators . | . . . . . Repair Stations . | . . . . . Recycling Units . | . . . . . Scanalyzers . | . . . . . Garrison Access . | . . . . . Terminal Hacks 3 | . 1 . 2 . Record 1 | . . . 1 . Robot Analysis 1 | . 1 . . . Derelict Proto ID Bank 1 | . . . 1 . Fabricator Hacks . | . . . . . Repair Station Hacks . | . . . . . Recycling Unit Hacks . | . . . . . Scanalyzer . | . . . . . Garrison Access Hacks . | . . . . . Unauthorized Hacks . | . . . . . Terminals . | . . . . . Fabricators . | . . . . . Repair Stations . | . . . . . Recycling Units . | . . . . . Scanalyzers . | . . . . . Garrison Access . | . . . . . Data Cores Recovered . | . . . . . Used . | . . . . . Hacking Detections 2 | . 2 . . . Full Trace Events . | . . . . . Feedback Events . | . . . . . Feedback Blocked . | . . . . . Robot Schematics Acquired . | . . . . . Robots Built . | . . . . . Authchips . | . . . . . Time . | . . . . . Total Robot Build Rating . | . . . . . Part Schematics Acquired . | . . . . . Parts Built . | . . . . . Authchips . | . . . . . Time . | . . . . . Total Part Build Rating . | . . . . . Parts Repaired . | . . . . . Time . | . . . . . Parts Recycled . | . . . . . Recycled Matter . | . . . . . Retrieved Matter . | . . . . . Retrieved Components . | . . . . . Parts Scanalyzed . | . . . . . Part Schematics Acquired . | . . . . . Parts Damaged . | . . . . . Bothacking | -11 -10 -10 -10 -9 ------------ Run | Jun Mat Min Exi Min Used RIF Installer . | . . . . . Robots Hacked . | . . . . . Non-combat . | . . . . . Combat . | . . . . . Robot Hacks Applied . | . . . . . Relay Couplers Released . | . . . . . Fabnet Peak Effective % . | . . . . . Robots Rewired . | . . . . . Allies Hacked . | . . . . . Hacks Repelled . | . . . . . Allies | -11 -10 -10 -10 -9 -------- Run | Jun Mat Min Exi Min Total Allies 5 | . . 2 . 3 Largest Group 3 | . . 2 2 3 Highest-Rated Group 47 | . . 47 47 40 Highest-Rated Ally 31 | . . 31 31 16 Total Orders . | . . . . . Ally Attacks 4 | . . . . 4 Total Damage 38 | . . . . 38 Kills . | . . . . . Allies Corrupted . | . . . . . Allies Melted . | . . . . . Intel | -11 -10 -10 -10 -9 ------- Run | Jun Mat Min Exi Min Robot Analysis Total 1 | . 1 . . . Derelict Logs Recovered 3 | . . 2 . 1 Drone Launches . | . . . . . Drone Recoveries . | . . . . . Exploration | -11 -10 -10 -10 -9 ------------- Run | Jun Mat Min Exi Min Turns Passed 3596 | 81 1146 1443 635 291 Spaces Moved 1437 | 47 441 567 265 117 Core 4 | 4 . . . . Treads 1433 | 43 441 567 265 117 Legs . | . . . . . Wheels . | . . . . . Hover . | . . . . . Flight . | . . . . . Fastest Speed 50 | 50 160 240 240 240 Average Speed 230 | 150 219 240 240 240 Slowest Speed 240 | 160 240 240 240 240 Overloaded Moves . | . . . . . Propulsion Burnouts . | . . . . . Robots Hopped . | . . . . . Cave-ins Triggered . | . . . . . Exploration Rate (%) 55 | 4 77 91 69 35 Regions Visited 4 Branch Regions 3 Pre-discovered Areas 2 | . . 1 1 . Known Exits Taken . | . . . . . Unknown Exits Taken 4 | 1 1 1 1 . Scrap Searched 1 | . . . . 1 Spaces Dug . | . . . . . Terrain Destroyed . | . . . . . Melee . | . . . . . Projectile . | . . . . . AOE . | . . . . . Terrain Rammed . | . . . . . Walls Destroyed . | . . . . . Machines Disabled . | . . . . . Actions | -11 -10 -10 -10 -9 --------- Run | Jun Mat Min Exi Min Total 1572 | 54 526 606 265 121 Wait 27 | . 18 9 . . Move 1433 | 46 440 566 264 117 Hop . | . . . . . Pick Up 8 | 2 4 1 1 . Fast Attach 8 | 6 2 . . . Attach 2 | . . 2 . . Detach 1 | . 1 . . . Swap 1 | . 1 . . . Drop 1 | . 1 . . . Fire 82 | . 53 25 . 4 Melee . | . . . . . Ram . | . . . . . Kick . | . . . . . Crush 9 | . 6 3 . . Escape Stasis . | . . . . . Rewire . | . . . . . Trap . | . . . . . Miscellaneous . | . . . . . Route ------- -11/Junkyard -10/Materials (discovered 4 exits: [*Mat x2] / [*Min x2]) -10/Mines (discovered 3 exits: [*Mat x2] / *Exi) -10/Exiles -9/Mines (discovered 2 exits: [*Mat x2]) History --------- Turn | Location | Event 13 | -11/Junkyard | Discovered new exit (range 15) 82 | -11/Junkyard | Entered Materials 234 | -10/Materials | Discovered new exit (range 15) 306 | -10/Materials | Build established: Mutant 689 | -10/Materials | Discovered new exit (range 4) 800 | -10/Materials | Derelicts attacked the area 1072 | -10/Materials | Discovered new exit (range 6) 1213 | -10/Materials | Discovered new exit (range 7) 1228 | -10/Materials | Entered Mines 1410 | -10/Mines | Found a hidden stash of uninstalled traps 1464 | -10/Mines | Core integrity fell below 50% 1683 | -10/Mines | Learned location of Mines (-9) 1815 | -10/Mines | Discovered new exit (range 13) 2257 | -10/Mines | A weapon hastily lodged in a ceiling crevice suddenly fell to the ground 2337 | -10/Mines | Discovered new exit (range 15) 2385 | -10/Mines | Learned Materials garrison access intel 2661 | -10/Mines | Deemed a non-threat by the Exiles lab entrance 2661 | -10/Mines | Discovered new exit (range 5) 2671 | -10/Mines | Entered Exiles 2671 | -10/Exiles | Accompanied by 2 allies 2701 | -10/Exiles | Led the pair of lost Derelicts to a safe place 2731 | -10/Exiles | Met 8R-AWN 2770 | -10/Exiles | Met EX-HEX 2859 | -10/Exiles | Met EX-DEC 2902 | -10/Exiles | Learned location of Zion (-6) 2950 | -10/Exiles | Met EX-BIN 2983 | -10/Exiles | Aligned with FarCom system 2986 | -10/Exiles | Given EX-Vault access code 3041 | -10/Exiles | Opened EX-Vault 3060 | -10/Exiles | Found XL Autogun Array 3112 | -10/Exiles | Warned to stay clear of 0b10 Research branches 3280 | -10/Exiles | Discovered new exit (range 12) 3306 | -10/Exiles | Left Exiles lab with XL Autogun Array 3306 | -10/Exiles | Entered Mines 3383 | -9/Mines | Assisted by bots powering up and referring to "LRC-V3" 3431 | -9/Mines | Learned Materials emergency access door positions 3477 | -9/Mines | Discovered new exit (range 7) 3501 | -9/Mines | Discovered new exit (range 16) 3579 | -9/Mines | Assembled infested the area 3588 | -9/Mines | Core integrity fell below 20% 3597 | -9/Mines | Destroyed by D-53 Grenadier with Mini Grenade Launcher Last Messages --------------- 03412_ U-05 Engineer lays Concrete. 03413_ U-05 Engineer builds a Wall. 03415_ T-07 Excavator is excavating. 03431_ Acquired derelict log, extracted data. Data stored: Materials emergency access points. 03477_ EXIT=FOUND 03557_ T-07 Excavator is excavating. 03579_ ALERT: Infestation in the mines, dispatching Demolisher response squad. 03584_ C-30 ARC bursts open, deploying its payload. 03584_ D-53 Grenadier unfolds itself. 03587_ Trooper 2a destroyed. 03587_ Trooper 2b destroyed. 03587_ Mercenary 2a destroyed. 03590_ D-53 Grenadier suffers critical hit (Destroy). 03590_ Shock Absorption System melted. 03590_ D-53 Grenadier destroyed. 03592_ The unstable cave ceiling collapses. 03594_ Ion Engine destroyed. 03594_ Lgt. Treads destroyed. Map ----- +----------------------------------------------------+ | ????? """ ??# #???????????????## ## ## | | ? """ """ ## ### ##???????????????????# ### | | # ##?## ##???????############ #?## | | ???"" """ ##### ###?????# #?## | | ????? """ ### ## ##????# ############?# | | ????? """ ???# ## ### ###### #???????????# | | ????? ????# ##???### #??????????# | | ?????##??????# #??????#### ########??????????## | | ?????????????# #?????????# #??????????????????### | | ?????????????# #??#??????# #????????????????????? | | ?????????????# ## #??????# #????????????????????? | | ?????????????# #??????# ????????????????????? | | ?????????????# ####??????###????????????????????? | | ?????????????# ##???????????????????????????????? | | ?????????????# ####????????????????????????????? | | ?????????????# ##???????????????????????????? | | ?????????????# #???????????????????????????? | | ?????????????# #???????????????????????????? | | ?????????????# < #???????????????????????????? | | ?????????????# #???????????????????????????? | | ?????????????# #########????????????????????? | | ?????????????# #### ##???????????????????? | | ?????????????## ### ##?????????????????? | | ??????????????## # #??????????????????? | | ??????????????## %## #??????????????????? | | ???????# #### % @ #???????????????????? | | ???????# d #??????????????????? | | ???????# #### = #??????????????????? | | ?????????????# ## ##??????????????????? | | ?????????????# #### ! ##???????????????????? | | ?????????????## ##?# #???????????????????? | | ??????????????####??# #???????????????????? | | ????????????????????## t ??????????????????? | | ?????????????????????# ###?????????????????? | | ?????????????????????## ##???????????????????? | | ??????????????????????#######????????????????????? | | ?????????????????????????????????????????????????? | | ?????????????????????????????????????????????????? | | ?????????????????????????????????????????????????? | | ?????????????????????????????????????????????????? | | ?????????????????????????????????????????????????? | | ?????????????????????????????????????????????????? | | ?????????????????????????????????????????????????? | | ?????????????????????????????????????????????????? | | ?????????????????????????????????????????????????? | | ?????????????????????????????????????????????????? | | ?????????????????????????????????????????????????? | | ?????????????????????????????????????????????????? | | ?????????????????????????????????????????????????? | | ?????????????????????????????????????????????????? | +----------------------------------------------------+ Best States ------------- Heat Dissipation 25 Energy Generation 10 Energy Capacity 250 Matter Stores 300 Matter Capacity 300 Sight Range 16 Terrain Scan Density 10 Evasion (%) 40 Recoil Reduction 2 Item Schematics ----------------- None Robot Schematics ------------------ None Fabricated ------------ Nothing Alien Tech Used ----------------- None Achievements -------------- None Challenges ------------ None Game ------ Seed BlastTimingLoader Manual? 0 Play Time 00:10:18 Cumulative 440.3 hours Start 2023.09.20 @ 19:08:00 End 2023.09.21 @ 18:23:40 Sessions 3 Manual Loads 0 Difficulty Rogue Special Mode None Game No. 510 Rogue 423 Adventurer 87 Explorer 0 Win Type - Total 24 Types 8/0/13/1/1/0/1/0/0 Lore% 86 Gallery% 91 Achievement% 75 Wizard Run 0 Options --------- ASCII 0 Keyboard 1 Movement Numpad Keybinds 0 Fullscreen 1 Font 18/SmallcapsGlow Map View 76x50 Tactical HUD 1 Map Filters NONE Filters NONE Steam 1 RUN: 7691e971-3da0-403b-9525-fa312a0d0a64